Cogmind - Beta 13 @@@ ROGUE MODE // 2024.05.03 @ 05:55:57 Player: BionicBot Result: Destroyed by K0-0MY(R) with Subdweller Machine Gun Performance ------------- Evolutions (0) 0 Regions Visited (2) 400 Robots Destroyed (15) 75 Value Destroyed (392) 392 Prototype IDs (0) 0 Alien Tech Used (0) 0 Bonus (0) 0 TOTAL SCORE: 867 Bonus ------- None Cogmind --------- Core Integrity 0/250 Matter 293/300 Energy 182/200 System Corruption 2% Temperature Cool (0) Movement Treading (160) Location -10/Subcaves Parts ------- > --- POWER (1) -------- Subdweller Power Source > --- PROPULSION (2) --- Improved Treads Improved Treads > --- UTILITY (2) ------ Improved Heat Sink Small Storage Unit > --- WEAPON (2) ------- Subdweller Laser Subdweller Beam Cannon > --- INVENTORY (8) ---- Improved Treads Small Laser Small Laser Subdweller Laser Peak State ------------ > --- POWER ------------ Subdweller Power Source > --- PROPULSION ------- Subdweller Monowheel Subdweller Monowheel > --- UTILITY ---------- Improved Heat Sink Small Storage Unit > --- WEAPON ----------- Subdweller Laser Subdweller Beam Cannon > --- INVENTORY -------- (None) [Rating: 14] Favorites ----------- Power Subdweller Power Source Engine Subdweller Power Source Propulsion Improved Treads Treads Improved Treads Wheel Subdweller Monowheel Utility Small Storage Unit Device Heat Sink Storage Small Storage Unit Weapon Medium Laser Energy Gun Medium Laser Energy Cannon Subdweller Beam Cannon Build | -11 -10 -10 ------- Run | Yrd Mat Sub Slots Evolved . | . . . Power . | . . . Propulsion . | . . . Utility . | . . . Weapon . | . . . Parts Attached 26 | 6 20 . Power 5 | 1 4 . Engine 5 | 1 4 . Core . | . . . Reactor . | . . . Propulsion 13 | 2 11 . Treads 11 | 2 9 . Leg . | . . . Wheel 2 | . 2 . Hover . | . . . Flight . | . . . Utility 3 | 1 2 . Device 2 | . 2 . Storage 1 | 1 . . Processor . | . . . Hackware . | . . . Protection . | . . . Artifact . | . . . Weapon 5 | 2 3 . Energy Gun 4 | 2 2 . Energy Cannon 1 | . 1 . Ballistic Gun . | . . . Ballistic Cannon . | . . . Launcher . | . . . Special Weapon . | . . . Impact Weapon . | . . . Slashing Weapon . | . . . Piercing Weapon . | . . . Special Melee Weapon . | . . . Unidentified Prototypes . | . . . Parts Lost 6 | . 6 . Power 2 | . 2 . Propulsion 1 | . 1 . Utility 1 | . 1 . Weapon 2 | . 2 . Highest Loss Streak 5 | . 5 . To Critical Strikes . | . . . Average Slot Usage (%) 96 | . 95 100 Engine 13 | . 13 14 Treads 19 | . 18 28 Wheel 7 | . 8 . Device 11 | . 11 14 Storage 14 | . 14 14 Energy Gun 20 | . 21 14 Energy Cannon 6 | . 5 14 Naked Turns . | . . . Heaviest Build 23 | 12 23 23 Greatest Support 46 | 40 46 46 Greatest Overweight (x) 7 | 3 7 . Average Overweight (x) . | . . . Largest Inventory Capacity 8 | 8 8 8 Average Capacity 7 | 7 8 8 Most Carried 6 | . 6 4 Average Carried 2 | . 2 3 Final Capacity 8 | 8 8 8 Final Carried 4 | . 3 4 Class Distribution -------------------- 53% | Mutant 46% | Scavenger-Mutant Dominant Class ---------------- Mutant | -10/Materials Scavenger-Mutant | -10/Subcaves Resources | -11 -10 -10 ----------- Run | Yrd Mat Sub Matter Collected 440 | 229 211 . Remotely . | . . . Salvage Created 431 | . 379 52 Parts 36 | . 32 4 Haulers Intercepted . | . . . Recyclers Shooed . | . . . Parts Field Recycled . | . . . Retrieved Matter . | . . . Parts Self-Destructed . | . . . Prevented . | . . . Kills | -11 -10 -10 ------- Run | Yrd Mat Sub Combat Hostiles Destroyed 14 | . 13 1 Guns 12 | . 11 1 Cannons 2 | . 2 . Classes Destroyed 4 | . 4 . Watcher 1 | . 1 . Swarmer 6 | . 6 . Grunt 4 | . 4 . Subdweller 4 | . 3 1 Best Kill Streak 3 | . 3 1 Combat Bots Only 3 | . 3 1 Max Kills in Single Turn 1 | . 1 1 Gunslinging . | . . . Exploded . | . . . Melee . | . . . Uniques/NPCs Destroyed . | . . . Combat | -11 -10 -10 -------- Run | Yrd Mat Sub Hostile Shots Fired 100 | . 93 7 Missed 31 | . 30 1 Damage Taken 1020 | . 891 129 Core 252 | . 168 84 Absorbed by Shields . | . . . Core Remaining (%) 100 | 100 . . Volleys Fired 61 | . 56 5 Largest 2 | . 2 2 Hottest 140 | . 140 140 Shots Fired 110 | . 104 6 Gun 101 | . 96 5 Cannon 9 | . 8 1 Launcher . | . . . Special . | . . . Kinetic . | . . . Thermal 110 | . 104 6 Explosive . | . . . Electromagnetic . | . . . Robot Hit Streak 20 | . 20 4 Robot Miss Streak 4 | . 4 1 Penetration Max . | . . . Secondary Targets 1 | . 1 . Max Gunslinging Chain 1 | . 1 . Shots Hit Robots 77 | . 72 5 Core Hits 25 | . 23 2 Critical Kills . | . . . Critical Parts Destroyed . | . . . Critical Strikes 3 | . 3 . Burn 3 | . 3 . Melee Attacks . | . . . Impact . | . . . Slashing . | . . . Piercing . | . . . Sneak Attacks . | . . . Combat Hostiles . | . . . Follow-up Attacks . | . . . Damage Inflicted 1140 | . 1037 103 Guns 1018 | . 915 103 Cannons 113 | . 113 . Explosions . | . . . Melee . | . . . Ramming 9 | . 9 . Kinetic . | . . . Thermal 1131 | . 1028 103 Explosive . | . . . Electromagnetic . | . . . Impact . | . . . Slashing . | . . . Piercing . | . . . Highest Corruption 2 | . 2 2 Average Corruption 2 | . 2 2 Corruption Purged . | . . . Corruption Blocked . | . . . Effects 5 | . 3 2 Message Errors 1 | . 1 . Matter Fused 1 | . . 1 Energy Discharges 1 | . 1 . Data Loss (minor) 2 | . 1 1 Overload Shots . | . . . Overflow Damage . | . . . Projectiles . | . . . Explosions . | . . . Melee . | . . . Knockbacks . | . . . Impact . | . . . Kinetic . | . . . Secondary . | . . . Self-Inflicted Damage 3 | . 3 . Shots . | . . . Rammed 3 | . 3 . Targets Rammed 3 | . 3 . Kicked . | . . . Crushed . | . . . Highest Temperature 382 | . 382 36 Average Temperature 105 | . 108 19 Received Heat Transfer 863 | . 863 . Effects 1 | . 1 . Damage (minor) 1 | . 1 . Siege Activations . | . . . Robots Corrupted . | . . . Combat Hostiles . | . . . Parts Fried . | . . . Impact Corruptions . | . . . Robots Melted . | . . . Combat Hostiles . | . . . Parts Melted 7 | . 7 . Heat Transferred 2891 | . 2766 125 Parts Sabotaged . | . . . Parts Stolen . | . . . Parts Stripped . | . . . Power Chain Reactions . | . . . Alert | -11 -10 -10 ------- Run | Yrd Mat Sub Peak Influence 140 | . 140 . Initial . | . . . Average 48 | . 50 . Maximum Alert Level . | . . . Low Security (%) 100 | 100 100 . Level 1 . | . . . Level 2 . | . . . Level 3 . | . . . Level 4 . | . . . Level 5 . | . . . High Security . | . . . Max Security . | . . . Squads Dispatched 1 | . 1 . Investigation 1 | . 1 . Extermination . | . . . Reinforcement . | . . . Assault . | . . . Garrison . | . . . Intercept . | . . . Searches Triggered . | . . . Construction Impeded . | . . . Haulers Reinforced . | . . . Active Scanning Responses . | . . . Cargo Convoy Interrupts . | . . . Stealth | -11 -10 -10 --------- Run | Yrd Mat Sub Distress Signals . | . . . Communications Jammed . | . . . Distress Signals . | . . . Times Spotted 19 | . 17 2 Peak Tracking Total 5 | . 5 2 Tactical Retreats 2 | . 2 . Traps | -11 -10 -10 ------- Run | Yrd Mat Sub Traps Triggered 2 | . 2 . Indirectly . | . . . Trap Hack Attempts . | . . . Triggered . | . . . Disarmed . | . . . Reprogrammed . | . . . Reused . | . . . Traps Extracted . | . . . Installed . | . . . Triggered . | . . . Machines | -11 -10 -10 ---------- Run | Yrd Mat Sub Machines Disabled 2 | . 2 . Max in Single Turn 1 | . 1 . Machines Repaired . | . . . Machines Dismantled . | . . . Machines Sabotaged . | . . . Overloaded Fab Kills . | . . . Hacking | -11 -10 -10 --------- Run | Yrd Mat Sub Machines Accessed 1 | . 1 . Terminals 1 | . 1 . Fabricators . | . . . Repair Stations . | . . . Recycling Units . | . . . Scanalyzers . | . . . Garrison Access . | . . . Total Hacks 2 | . 2 . Successful . | . . . Failed 2 | . 2 . Catastrophic 1 | . 1 . Database Lockouts . | . . . Manual . | . . . Terminals 2 | . 2 . Fabricators . | . . . Repair Stations . | . . . Recycling Units . | . . . Scanalyzers . | . . . Garrison Access . | . . . Terminal Hacks . | . . . Fabricator Hacks . | . . . Repair Station Hacks . | . . . Recycling Unit Hacks . | . . . Scanalyzer . | . . . Garrison Access Hacks . | . . . Unauthorized Hacks . | . . . Terminals . | . . . Fabricators . | . . . Repair Stations . | . . . Recycling Units . | . . . Scanalyzers . | . . . Garrison Access . | . . . Data Cores Recovered . | . . . Used . | . . . Hacking Detections 1 | . 1 . Full Trace Events 1 | . 1 . Feedback Events . | . . . Feedback Blocked . | . . . Robot Schematics Acquired . | . . . Robots Built . | . . . Authchips . | . . . Time . | . . . Total Robot Build Rating . | . . . Part Schematics Acquired . | . . . Parts Built . | . . . Authchips . | . . . Time . | . . . Total Part Build Rating . | . . . Parts Repaired . | . . . Time . | . . . Parts Recycled . | . . . Recycled Matter . | . . . Retrieved Matter . | . . . Retrieved Components . | . . . Parts Scanalyzed . | . . . Part Schematics Acquired . | . . . Parts Damaged . | . . . Bothacking | -11 -10 -10 ------------ Run | Yrd Mat Sub Used RIF Installer . | . . . Robots Hacked . | . . . Non-combat . | . . . Combat . | . . . Robot Hacks Applied . | . . . Relay Couplers Released . | . . . Fabnet Peak Effective % . | . . . Robots Rewired . | . . . Allies Hacked . | . . . Hacks Repelled . | . . . Allies | -11 -10 -10 -------- Run | Yrd Mat Sub Total Allies . | . . . Largest Group . | . . . Highest-Rated Group . | . . . Highest-Rated Ally . | . . . Total Orders . | . . . Ally Attacks . | . . . Total Damage . | . . . Kills . | . . . Allies Corrupted . | . . . Allies Melted . | . . . Intel | -11 -10 -10 ------- Run | Yrd Mat Sub Robot Analysis Total . | . . . Derelict Logs Recovered 1 | . . 1 Drone Launches . | . . . Drone Recoveries . | . . . Exploration | -11 -10 -10 ------------- Run | Yrd Mat Sub Turns Passed 1480 | 63 1252 165 Spaces Moved 788 | 38 656 94 Core 35 | 20 15 . Treads 507 | 18 395 94 Legs . | . . . Wheels 246 | . 246 . Hover . | . . . Flight . | . . . Fastest Speed 50 | 50 110 160 Average Speed 149 | 145 148 160 Slowest Speed 400 | 200 400 160 Overloaded Moves . | . . . Propulsion Burnouts . | . . . Robots Hopped . | . . . Cave-ins Triggered . | . . . Exploration Rate (%) 25 | 5 63 7 Regions Visited 2 Branch Regions 1 Pre-discovered Areas . | . . . Known Exits Taken . | . . . Unknown Exits Taken 2 | 1 1 . Scrap Searched 1 | . . 1 Spaces Dug . | . . . Terrain Destroyed 2 | . 2 . Melee . | . . . Projectile 2 | . 2 . AOE . | . . . Terrain Rammed . | . . . Walls Destroyed . | . . . Machines Disabled . | . . . Actions | -11 -10 -10 --------- Run | Yrd Mat Sub Total 973 | 43 827 103 Wait 69 | . 66 3 Move 786 | 37 655 94 Hop . | . . . Pick Up 10 | . 9 1 Fast Attach 16 | 6 10 . Attach 1 | . 1 . Detach 3 | . 3 . Swap 9 | . 9 . Drop 15 | . 15 . Fire 61 | . 56 5 Melee . | . . . Ram 3 | . 3 . Kick . | . . . Crush . | . . . Escape Stasis . | . . . Rewire . | . . . Trap . | . . . Miscellaneous . | . . . Route ------- -11/Scrapyard -10/Materials (discovered 4 exits: [*Mat x2] / [*Min] / [*Sub]) -10/Subcaves (discovered 1 exit: Rec) History --------- Turn | Location | Event 16 | -11/Scrapyard | Discovered new exit (range 15) 64 | -11/Scrapyard | Entered Materials 187 | -10/Materials | Discovered new exit (range 10) 308 | -10/Materials | Build established: Mutant 593 | -10/Materials | Discovered new exit (range 15) 664 | -10/Materials | Derelicts attacked the area 804 | -10/Materials | Lost 5 parts (1p1n1u2w) 826 | -10/Materials | Discovered new exit (range 14) 893 | -10/Materials | Core integrity fell below 50% 1022 | -10/Materials | Discovered new exit (range 13) 1083 | -10/Materials | Build established: Scavenger-Mutant 1316 | -10/Materials | Entered Subcaves 1352 | -10/Subcaves | Identified exit to Recycling 1478 | -10/Subcaves | Core integrity fell below 20% 1481 | -10/Subcaves | Destroyed by K0-0MY(R) with Subdweller Machine Gun Last Messages --------------- 01215_ R-06 Scavenger collects Wheel. 01223_ R-06 Scavenger collects Com. Wheel. 01237_ Acquired Broken Particle Gun. 01238_ Dropped Broken Particle Gun. 01245_ System corrupted: Energy discharge (-50). 01269_ Acquired Sml. Laser. 01300_ R-06 Scavenger collects Structural Scanner. 01303_ R-06 Scavenger collects Broken Sub. Monowheel. LOCATION=UNKNOWN AMBIENT_HEAT=-10 GOAL=ESCAPE 01346_ System corrupted: Component data lost. 01352_ Acquired derelict log, extracted data. 01371_ Searching scrap... 01371_ Found Sub. Laser. 01371_ Found 32 Matter. 01374_ Acquired Sub. Laser. 01379_ System corrupted: Matter fused (-7). 01474_ Sub. Beam Cannon shoots sparks and powers down. 01477_ QI-WBP(R) destroyed. Map ----- +----------------------------------------------------+ | ??????????????????????## ????????????? | | ???????????????######## ????????????????? | | ??????????????## ## #??????????????????????? | | ?????????????## #??????????????????????? | | ?????????????# #??????????????????????? | | ?????????????## #??????????????????????? | | ??????????????# ## ##??????????????????????? | | ?????????????## ### #########???????????????? | | ?????????????# #### ## ## #??###??????????? | | ?????????????# ##??#### #### #??????????? | | ??????????#### #????# ### # #??????????? | | ?????????## #????# ## #??????????? | | ?????????# #????# #??????????? | | ????????# #???## ##??????????? | | ????????## ##### ## ####???????????? | | ?????????#### ## ## ## ##??????????? | | ????????????## ### #??????????? | | ?????????????### ## #??????????? | | ???????????????# ##??????????? | | ??????????????# ## ####?????????? | | ???????????? #### ## #?????????? | | ?????????? #??# ##????????? | | ?????????? # ####??# % #????????? | | ???????????# ???????# ### ####????????? | | ???????????????????## R& #?## ##???????????? | | ???????????????????# !%&@##?## ##????????????? | | ???????????????????## &####??# ##?????????????? | | ????????????????????## #?????# #??????????????? | | ???????????????????? #????## ##??????????????? | | ?????????????????? ????####???????????????? | | ???????????????? ### ??????????????????????? | | ?????????????? ???# #?????????????????????? | | ????????????# ?????# ##?????????????????????? | | ??????????? ???????##??????????????????????? | | ??????????"" ???????????????????????????????? | | ???????????### ????????????????????????????????? | | ?????????????#""?????????????????????????????????? | | ?????????????#"??????????????????????????????????? | | ?????????????????????????????????????????????????? | | ?????????????????????????????????????????????????? | | ?????????????????????????????????????????????????? | | ?????????????????????????????????????????????????? | | ?????????????????????????????????????????????????? | | ?????????????????????????????????????????????????? | | ?????????????????????????????????????????????????? | | ?????????????????????????????????????????????????? | | ?????????????????????????????????????????????????? | | ?????????????????????????????????????????????????? | | ?????????????????????????????????????????????????? | | ?????????????????????????????????????????????????? | +----------------------------------------------------+ Best States ------------- Heat Dissipation 39 Energy Generation 15 Energy Capacity 265 Matter Stores 300 Matter Capacity 300 Sight Range 16 Terrain Scan Density 10 Evasion (%) 40 Recoil Reduction 2 Item Schematics ----------------- None Robot Schematics ------------------ None Fabricated ------------ Nothing Alien Tech Used ----------------- None Achievements -------------- None Challenges ------------ None Game ------ Seed ZhirovAerolevDatajack Manual? 0 Play Time 00:14:32 Cumulative 26.7 hours Start 2024.05.03 @ 05:41:19 End 2024.05.03 @ 05:55:57 Sessions 1 Manual Loads 0 Difficulty Rogue Special Mode None Game No. 29 Rogue 29 Adventurer 0 Explorer 0 Win Type - Total 0 Types 0/0/0/0/0/0/0/0/0 Lore% 6 Gallery% 24 Achievement% 19 Wizard Run 0 Options --------- Layout 0 ASCII 0 Keyboard 1 Movement Numpad Keybinds 0 Fullscreen 2 Font 18/SmallcapsGlow Map View 76x50 Zoom Use 0% Tactical HUD 1 Map Filters NONE Filters NONE Steam 1 RUN: 5ea4b659-523d-4385-9120-f9be0ea15fdf